fUST/lending_fUST_20260514
["ID","MTS","AMOUNT","RATE_DAILY","PERIOD"]
[422201602,1778688102000,152.0,0.00013652,30]
[422201604,1778688103000,152.0,0.00013672,30]
[422201603,1778688103000,152.0,0.00013652,30]
[422201605,1778688104000,152.0,0.00013693,30]
[422201607,1778688130000,152.0,0.00013651,30]
[422201606,1778688130000,152.0,0.00013651,30]
[422201608,1778688131000,152.0,0.00013655,30]
[422201609,1778688132000,152.0,0.00013655,30]
[422201616,1778688402000,152.0,0.00013651,30]
[422201618,1778688403000,152.0,0.00013655,30]
[422201617,1778688403000,152.0,0.00013651,30]
[422201619,1778688426000,152.0,0.00013652,30]
[422201620,1778688427000,152.0,0.00013652,30]
[422201621,1778688428000,152.0,0.00013672,30]
[422201623,1778688628000,165.963193,2.722e-05,2]
[422201665,1778688632000,-500.0,5.515e-05,2]
[422201688,1778688632000,-300.0,5.974e-05,2]
[422201682,1778688632000,-300.0,5.974e-05,2]
[422201684,1778688632000,-300.0,5.974e-05,2]
[422201680,1778688632000,-300.0,5.974e-05,2]
[422201686,1778688632000,-300.0,5.974e-05,2]
[422201678,1778688632000,-300.0,5.974e-05,2]
[422201675,1778688632000,-300.0,5.974e-05,2]
[422201669,1778688632000,-1690.59349531,5.68e-05,2]
[422201659,1778688632000,-300.0,5.32e-05,2]
[422201673,1778688632000,-151.0,5.858e-05,2]
[422201677,1778688632000,-300.0,5.974e-05,2]
[422201667,1778688632000,-1152.70532269,5.547e-05,2]
[422201657,1778688632000,-587.0,5.19e-05,2]
[422201661,1778688632000,-401.85798033,5.323e-05,2]
[422201690,1778688632000,-300.0,5.974e-05,2]
[422201663,1778688632000,-614.81715007,5.5e-05,2]
[422201655,1778688632000,-5000.0,5.139e-05,2]
[422201653,1778688632000,-5000.0,5.088e-05,2]
[422201671,1778688632000,-420.0,5.852e-05,2]
[422201694,1778688632000,-300.0,5.974e-05,2]
[422201699,1778688632000,-300.0,5.974e-05,2]
[422201696,1778688632000,-300.0,5.974e-05,2]
[422201723,1778688632000,-3320.07137874,8.4e-05,2]
[422201725,1778688632000,-1613.0,8.568e-05,2]
[422201720,1778688632000,-1152.0,7.789e-05,2]
[422201722,1778688632000,-233.12484246,8.06e-05,2]
[422201718,1778688632000,-6218.36958488,7.6e-05,2]
[422201714,1778688632000,-2633.93934261,7.04e-05,2]
[422201692,1778688632000,-300.0,5.974e-05,2]
[422201721,1778688632000,-3304.25801318,8.06e-05,2]
[422201716,1778688632000,-474.19241679,7.323e-05,2]
[422201719,1778688632000,-2977.00536067,7.72e-05,2]
[422201726,1778688632000,-3637.68685484,8.74e-05,2]
[422201717,1778688632000,-2766.36984056,7.38e-05,2]
[422201715,1778688632000,-823.0,7.081e-05,2]
[422201712,1778688632000,-250.0,6.859e-05,2]
[422201710,1778688632000,-2290.87332454,6.7e-05,2]
[422201701,1778688632000,-300.0,5.974e-05,2]
[422201707,1778688632000,-2228.48166794,6.36e-05,2]
[422201703,1778688632000,-1947.80730661,6.02e-05,2]
[422201708,1778688632000,-587.0,6.437e-05,2]
[422201698,1778688632000,-300.0,5.974e-05,2]
[422201724,1778688632000,-375.02024867,8.512e-05,2]
[422201734,1778688633000,-500.0,9.322e-05,2]
[422201732,1778688633000,-500.0,8.938e-05,2]
[422201730,1778688633000,-152.0,8.831e-05,2]
[422201733,1778688633000,-3665.59714691,9.08e-05,2]
[422201738,1778688633000,-842.0,9.425e-05,2]
[422201737,1778688633000,-6859.03550289,9.425e-05,2]
[422201728,1778688633000,-152.0,8.827e-05,2]
[422201727,1778688633000,-152.0,8.822e-05,2]
[422201729,1778688633000,-152.0,8.827e-05,2]
[422201739,1778688633000,-500.0,9.596e-05,2]
[422201736,1778688633000,-4008.90336528,9.42e-05,2]
[422201731,1778688633000,-152.0,8.844e-05,2]
[422201741,1778688633000,-500.0,9.87e-05,2]
[422201742,1778688633000,-14903.06214902,0.0001,2]
[422201743,1778688633000,-1428.50066713,0.0001,2]
[422201740,1778688633000,-4105.08285867,9.76e-05,2]
[422201735,1778688633000,-546.52685325,9.323e-05,2]
[422201744,1778688633000,-12147.13375248,0.0001,2]
[422201745,1778688633000,-1078.08916142,0.0001,2]
[422201746,1778688633000,-276.36,0.0001,2]
[422201747,1778688633000,-997.32222237,0.0001,2]
[422201780,1778688638000,-152.0,8.724e-05,2]
[422201791,1778688638000,-151.0,0.0001,2]
[422201782,1778688638000,-152.0,8.724e-05,2]
[422201789,1778688638000,-151.0,0.0001,2]
[422201793,1778688638000,-151.0,0.0001,2]
[422201797,1778688638000,-151.0,0.0001,2]
[422201785,1778688638000,-421.11306795,0.0001,2]
[422201795,1778688638000,-151.0,0.0001,2]
[422201783,1778688638000,-2404.52887332,0.0001,2]
[422201787,1778688638000,-180.0,0.0001,2]
[422201890,1778688639000,-944.0,0.0001041,2]
[422201877,1778688639000,-944.0,0.0001041,2]
[422201872,1778688639000,-944.0,0.0001041,2]
[422201870,1778688639000,-944.0,0.0001041,2]
[422201874,1778688639000,-944.0,0.0001041,2]
[422201856,1778688639000,-944.0,0.0001041,2]
[422201876,1778688639000,-944.0,0.0001041,2]
[422201868,1778688639000,-944.0,0.0001041,2]
[422201864,1778688639000,-944.0,0.0001041,2]
[422201861,1778688639000,-944.0,0.0001041,2]
[422201860,1778688639000,-944.0,0.0001041,2]
[422201866,1778688639000,-944.0,0.0001041,2]
[422201892,1778688639000,-944.0,0.0001041,2]
[422201901,1778688639000,-500.0,0.0001041,2]
[422201896,1778688639000,-500.0,0.0001041,2]
[422201880,1778688639000,-944.0,0.0001041,2]
[422201898,1778688639000,-500.0,0.0001041,2]
[422201887,1778688639000,-944.0,0.0001041,2]
[422201883,1778688639000,-944.0,0.0001041,2]
[422201900,1778688639000,-500.0,0.0001041,2]
[422201881,1778688639000,-944.0,0.0001041,2]
[422201885,1778688639000,-944.0,0.0001041,2]
[422201858,1778688639000,-944.0,0.0001041,2]
[422201906,1778688639000,-500.0,0.0001041,2]
[422201910,1778688639000,-500.0,0.0001041,2]
[422201912,1778688639000,-355.9145962,0.0001041,2]
[422201908,1778688639000,-500.0,0.0001041,2]
[422201894,1778688639000,-964.86344473,0.0001041,2]
[422201853,1778688639000,-944.0,0.0001041,2]
[422201834,1778688639000,-351.98492718,0.00010159,2]
[422201847,1778688639000,-944.0,0.0001041,2]
[422201903,1778688639000,-500.0,0.0001041,2]
[422201799,1778688639000,-151.0,0.0001,2]
[422201800,1778688639000,-151.0,0.0001,2]
[422201802,1778688639000,-151.0,0.0001,2]
[422201804,1778688639000,-351.98492722,0.0001,2]
[422201806,1778688639000,-151.0,0.0001,2]
[422201817,1778688639000,-151.0,0.0001,2]
[422201819,1778688639000,-151.0,0.0001,2]
[422201821,1778688639000,-151.0,0.0001,2]
[422201823,1778688639000,-151.0,0.0001,2]
[422201826,1778688639000,-151.0,0.0001,2]
[422201808,1778688639000,-151.0,0.0001,2]
[422201824,1778688639000,-151.0,0.0001,2]
[422201828,1778688639000,-351.98492718,0.0001003,2]
[422201813,1778688639000,-151.0,0.0001,2]
[422201810,1778688639000,-151.0,0.0001,2]
[422201815,1778688639000,-151.0,0.0001,2]
[422201812,1778688639000,-151.0,0.0001,2]
[422201832,1778688639000,-500.0,0.00010144,2]
[422201830,1778688639000,-4343.50817302,0.000101,2]
[422201841,1778688639000,-456.4437056,0.00010273,2]
[422201845,1778688639000,-351.98492718,0.00010289,2]
[422201836,1778688639000,-325.6691991,0.00010271,2]
[422201851,1778688639000,-944.0,0.0001041,2]
[422201840,1778688639000,-325.8415176,0.00010271,2]
[422201838,1778688639000,-151.0,0.00010271,2]
[422201843,1778688639000,-456.4711948,0.00010273,2]
[422201850,1778688639000,-944.0,0.0001041,2]
[422201914,1778688639000,-144.0854038,0.0001041,2]
[422201941,1778688639000,-500.0,0.0001041,2]
[422201919,1778688639000,-500.0,0.0001041,2]
[422201994,1778688639000,-4652.00874888,0.0001078,2]
[422201992,1778688639000,-9645.66182777,0.00010773,21]
[422201978,1778688639000,-557.5788265,0.00010716,2]
[422201999,1778688639000,-426.516,0.00010844,2]
[422201996,1778688639000,-10779.83807207,0.000108,2]
[422202001,1778688639000,-150.308,0.00010844,2]
[422201986,1778688639000,-1376.5115439,0.0001074,2]
[422201998,1778688639000,-599.60298507,0.00010826,2]
[422201984,1778688639000,-28217.7096153,0.0001074,2]
[422202017,1778688639000,-644.79446246,0.00010936,2]
[422202015,1778688639000,-54844.3624911,0.00010915,2]
[422202021,1778688639000,-543.1288,0.00010958,2]
[422202019,1778688639000,-1781.3386,0.00010958,2]
[422201982,1778688639000,-416.9871888,0.00010734,2]
[422202003,1778688639000,-160.0,0.00010864,2]
[422202013,1778688639000,-621.78829552,0.00010881,2]
[422202011,1778688639000,-160.0,0.00010864,2]
[422202024,1778688639000,-6988.86859768,0.00010958,2]
[422202007,1778688639000,-160.0,0.00010864,2]
[422202009,1778688639000,-161.63868993,0.00010864,2]
[422202026,1778688639000,-500.0,0.00010958,2]
[422202028,1778688639000,-500.0,0.00010958,2]
[422202032,1778688639000,-500.0,0.00010958,2]
[422202030,1778688639000,-500.0,0.00010958,2]
[422202033,1778688639000,-500.0,0.00010958,2]
[422202036,1778688639000,-500.0,0.00010958,2]
[422202037,1778688639000,-568.49,0.00010958,2]
[422201916,1778688639000,-219.33776712,0.0001041,2]
[422202005,1778688639000,-160.0,0.00010864,2]
[422201980,1778688639000,-179.6998833,0.00010734,2]
[422202022,1778688639000,-4850.906706,0.00010958,2]
[422201989,1778688639000,-263.56396474,0.0001074,2]
[422201990,1778688639000,-578.20924308,0.00010771,2]
[422201925,1778688639000,-500.0,0.0001041,2]
[422201921,1778688639000,-500.0,0.0001041,2]
[422201927,1778688639000,-500.0,0.0001041,2]
[422201929,1778688639000,-500.0,0.0001041,2]
[422201933,1778688639000,-500.0,0.0001041,2]
[422201935,1778688639000,-500.0,0.0001041,2]
[422201931,1778688639000,-500.0,0.0001041,2]
[422201939,1778688639000,-500.0,0.0001041,2]
[422201937,1778688639000,-500.0,0.0001041,2]
[422201947,1778688639000,-351.98492718,0.00010418,2]
[422201949,1778688639000,-4450.36197275,0.0001044,2]
[422201943,1778688639000,-403.07737979,0.0001041,2]
[422201945,1778688639000,-185.0,0.0001041,2]
[422201922,1778688639000,-500.0,0.0001041,2]
[422201976,1778688639000,-537.6845,0.00010661,2]
[422201952,1778688639000,-58159.0,0.00010449,2]
[422201974,1778688639000,-151.0,0.00010661,2]
[422201958,1778688639000,-151.98,0.00010518,2]
[422201972,1778688639000,-162.380719,0.00010661,2]
[422201960,1778688639000,-645.0,0.00010518,2]
[422201962,1778688639000,-574.654,0.00010518,2]
[422201955,1778688639000,-150.572,0.00010518,2]
[422201953,1778688639000,-363100.39144954,0.00010453,2]
[422201966,1778688639000,-443.0,0.00010518,2]
[422201970,1778688639000,-537.6845,0.00010661,2]
[422201964,1778688639000,-185.0,0.00010518,2]
[422201968,1778688639000,-151.0,0.00010656,2]
[422202117,1778688640000,-500.0,0.00010958,2]
[422202125,1778688640000,-500.0,0.00010958,2]
[422202122,1778688640000,-650.78,0.00010958,2]
[422202115,1778688640000,-609.05,0.00010958,2]
[422202121,1778688640000,-500.0,0.00010958,2]
[422202102,1778688640000,-500.0,0.00010958,2]
[422202111,1778688640000,-445.52783597,0.00010958,2]
[422202113,1778688640000,-500.0,0.00010958,2]
[422202108,1778688640000,-500.0,0.00010958,2]
[422202107,1778688640000,-582.73,0.00010958,2]
[422202127,1778688640000,-500.0,0.00010958,2]
[422202105,1778688640000,-500.0,0.00010958,2]
[422202119,1778688640000,-500.0,0.00010958,2]
[422202132,1778688640000,-500.0,0.00010958,2]
[422202130,1778688640000,-500.0,0.00010958,2]
[422202128,1778688640000,-500.0,0.00010958,2]
[422202142,1778688640000,-615.32,0.00010958,2]
[422202144,1778688640000,-500.0,0.00010958,2]
[422202138,1778688640000,-548.83,0.00010958,2]
[422202136,1778688640000,-500.0,0.00010958,2]
[422202146,1778688640000,-500.0,0.00010958,2]
[422202134,1778688640000,-500.0,0.00010958,2]
[422202148,1778688640000,-500.0,0.00010958,2]
[422202150,1778688640000,-500.0,0.00010958,2]
[422202152,1778688640000,-500.0,0.00010958,2]
[422202154,1778688640000,-500.0,0.00010958,2]
[422202156,1778688640000,-500.0,0.00010958,2]
[422202164,1778688640000,-500.0,0.00010958,2]
[422202140,1778688640000,-500.0,0.00010958,2]
[422202100,1778688640000,-500.0,0.00010958,2]
[422202039,1778688640000,-500.0,0.00010958,2]
[422202097,1778688640000,-500.0,0.00010958,2]
[422202160,1778688640000,-1325.77,0.00010958,2]
[422202045,1778688640000,-500.0,0.00010958,2]
[422202041,1778688640000,-500.0,0.00010958,2]
[422202043,1778688640000,-500.0,0.00010958,2]
[422202049,1778688640000,-500.0,0.00010958,2]
[422202047,1778688640000,-669.1,0.00010958,2]
[422202051,1778688640000,-314.88125962,0.00010958,2]
[422202059,1778688640000,-194.80798144,0.00010958,2]
[422202067,1778688640000,-500.0,0.00010958,2]
[422202065,1778688640000,-1753.271833,0.00010958,2]
[422202061,1778688640000,-779.23192578,0.00010958,2]
[422202055,1778688640000,-626.16822065,0.00010958,2]
[422202063,1778688640000,-500.0,0.00010958,2]
[422202099,1778688640000,-500.0,0.00010958,2]
[422202057,1778688640000,-500.0,0.00010958,2]
[422202070,1778688640000,-4870.19953611,0.00010958,2]
[422202073,1778688640000,-7013.087332,0.00010958,2]
[422202075,1778688640000,-9536.04549969,0.00010958,2]
[422202087,1778688640000,-500.0,0.00010958,2]
[422202089,1778688640000,-500.0,0.00010958,2]
[422202091,1778688640000,-500.0,0.00010958,2]
[422202095,1778688640000,-500.0,0.00010958,2]
[422202093,1778688640000,-500.0,0.00010958,2]
[422202076,1778688640000,-653.71,0.00010958,2]
[422202079,1778688640000,-500.0,0.00010958,2]
[422202081,1778688640000,-500.0,0.00010958,2]
[422202083,1778688640000,-1721.44,0.00010958,2]
[422202085,1778688640000,-500.0,0.00010958,2]
[422202069,1778688640000,-3116.92770311,0.00010958,2]
[422202165,1778688640000,-500.0,0.00010958,2]
[422202053,1778688640000,-500.0,0.00010958,2]
[422202167,1778688640000,-500.0,0.00010958,2]
[422202225,1778688640000,-635.0,0.00010958,2]
[422202227,1778688640000,-500.0,0.00010958,2]
[422202223,1778688640000,-585.67,0.00010958,2]
[422202224,1778688640000,-500.0,0.00010958,2]
[422202226,1778688640000,-718.19,0.00010958,2]
[422202228,1778688640000,-500.0,0.00010958,2]
[422202229,1778688640000,-500.0,0.00010958,2]
[422202233,1778688640000,-749.51,0.00010958,2]
[422202232,1778688640000,-780.95,0.00010958,2]
[422202231,1778688640000,-500.0,0.00010958,2]
[422202230,1778688640000,-500.0,0.00010958,2]
[422202235,1778688640000,-500.0,0.00010958,2]
[422202246,1778688640000,-942.56,0.00010958,2]
[422202248,1778688640000,-500.0,0.00010958,2]
[422202249,1778688640000,-1441.11,0.00010958,2]
[422202251,1778688640000,-1618.96,0.00010958,2]
[422202234,1778688640000,-500.0,0.00010958,2]
[422202242,1778688640000,-1153.64,0.00010958,2]
[422202258,1778688640000,-2292.51,0.00010958,2]
[422202238,1778688640000,-500.0,0.00010958,2]
[422202241,1778688640000,-695.09,0.00010958,2]
[422202239,1778688640000,-500.0,0.00010958,2]
[422202237,1778688640000,-500.0,0.00010958,2]
[422202236,1778688640000,-500.0,0.00010958,2]
[422202244,1778688640000,-500.0,0.00010958,2]
[422202240,1778688640000,-629.67,0.00010958,2]
[422202253,1778688640000,-500.0,0.00010958,2]
[422202255,1778688640000,-1274.97,0.00010958,2]
[422202162,1778688640000,-500.0,0.00010958,2]
[422202222,1778688640000,-228.14564734,0.00010958,2]
[422202221,1778688640000,-1460.67,0.00010958,2]
[422202257,1778688640000,-1284.61,0.00010958,2]
[422202211,1778688640000,-500.0,0.00010958,2]
[422202219,1778688640000,-500.0,0.00010958,2]
[422202169,1778688640000,-517.58,0.00010958,2]
[422202172,1778688640000,-500.0,0.00010958,2]
[422202158,1778688640000,-500.0,0.00010958,2]
[422202171,1778688640000,-500.0,0.00010958,2]
[422202175,1778688640000,-500.0,0.00010958,2]
[422202177,1778688640000,-811.64,0.00010958,2]
[422202179,1778688640000,-500.0,0.00010958,2]
[422202190,1778688640000,-500.0,0.00010958,2]
[422202192,1778688640000,-693.27,0.00010958,2]
[422202188,1778688640000,-500.0,0.00010958,2]
[422202184,1778688640000,-500.0,0.00010958,2]
[422202186,1778688640000,-500.0,0.00010958,2]
[422202194,1778688640000,-814.14,0.00010958,2]
[422202161,1778688640000,-500.0,0.00010958,2]
[422202183,1778688640000,-500.0,0.00010958,2]
[422202196,1778688640000,-500.0,0.00010958,2]
[422202220,1778688640000,-500.0,0.00010958,2]
[422202218,1778688640000,-511.28,0.00010958,2]
[422202215,1778688640000,-589.23,0.00010958,2]
[422202213,1778688640000,-500.0,0.00010958,2]
[422202209,1778688640000,-1418.03,0.00010958,2]
[422202217,1778688640000,-500.0,0.00010958,2]
[422202207,1778688640000,-150.66,0.00010958,2]
[422202201,1778688640000,-500.0,0.00010958,2]
[422202203,1778688640000,-998.52,0.00010958,2]
[422202200,1778688640000,-584.99,0.00010958,2]
[422202198,1778688640000,-500.0,0.00010958,2]
[422202181,1778688640000,-500.0,0.00010958,2]
[422202205,1778688640000,-500.0,0.00010958,2]
[422202305,1778688641000,-415.70014015,0.00010958,2]
[422202307,1778688641000,-703.57,0.00010958,2]
[422202306,1778688641000,-500.0,0.00010958,2]
[422202303,1778688641000,-500.0,0.00010958,2]
[422202304,1778688641000,-500.0,0.00010958,2]
[422202293,1778688641000,-807.48,0.00010958,2]
[422202310,1778688641000,-500.0,0.00010958,2]
[422202300,1778688641000,-1303.57,0.00010958,2]
[422202299,1778688641000,-500.0,0.00010958,2]
[422202301,1778688641000,-500.0,0.00010958,2]
[422202292,1778688641000,-3200.14,0.00010958,2]
[422202302,1778688641000,-1171.38,0.00010958,2]
[422202308,1778688641000,-707.51,0.00010958,2]
[422202311,1778688641000,-1124.4,0.00010958,2]
[422202312,1778688641000,-1368.04,0.00010958,2]
[422202315,1778688641000,-500.0,0.00010958,2]
[422202322,1778688641000,-4257.07,0.00010958,2]
[422202323,1778688641000,-511.94,0.00010958,2]
[422202313,1778688641000,-24146.01,0.00010958,2]
[422202314,1778688641000,-1983.38,0.00010958,2]
[422202319,1778688641000,-500.0,0.00010958,2]
[422202318,1778688641000,-500.0,0.00010958,2]
[422202316,1778688641000,-500.0,0.00010958,2]
[422202320,1778688641000,-500.0,0.00010958,2]
[422202321,1778688641000,-525.32,0.00010958,2]
[422202317,1778688641000,-500.0,0.00010958,2]
[422202294,1778688641000,-500.0,0.00010958,2]
[422202324,1778688641000,-1431.86,0.00010958,2]
[422202309,1778688641000,-921.23,0.00010958,2]
[422202290,1778688641000,-500.0,0.00010958,2]
[422202273,1778688641000,-1280.62,0.00010958,2]
[422202298,1778688641000,-500.0,0.00010958,2]
[422202326,1778688641000,-549.4,0.00010958,2]
[422202261,1778688641000,-3384.8,0.00010958,2]
[422202262,1778688641000,-1116.67,0.00010958,2]
[422202259,1778688641000,-254.92169211,0.00010958,2]
[422202260,1778688641000,-500.0,0.00010958,2]
[422202265,1778688641000,-896.74,0.00010958,2]
[422202264,1778688641000,-562.12,0.00010958,2]
[422202266,1778688641000,-500.0,0.00010958,2]
[422202267,1778688641000,-500.0,0.00010958,2]
[422202268,1778688641000,-500.0,0.00010958,2]
[422202272,1778688641000,-500.0,0.00010958,2]
[422202269,1778688641000,-1285.51,0.00010958,2]
[422202281,1778688641000,-1317.88,0.00010958,2]
[422202289,1778688641000,-1111.0,0.00010958,2]
[422202279,1778688641000,-1550.59,0.00010958,2]
[422202270,1778688641000,-500.0,0.00010958,2]
[422202277,1778688641000,-273.8,0.00010958,2]
[422202275,1778688641000,-500.0,0.00010958,2]
[422202283,1778688641000,-4085.76,0.00010958,2]
[422202285,1778688641000,-663.78,0.00010958,2]
[422202284,1778688641000,-500.0,0.00010958,2]
[422202287,1778688641000,-500.0,0.00010958,2]
[422202297,1778688641000,-500.0,0.00010958,2]
[422202295,1778688641000,-2593.58,0.00010958,2]
[422202296,1778688641000,-500.0,0.00010958,2]
[422202291,1778688641000,-500.0,0.00010958,2]
[422202286,1778688641000,-500.0,0.00010958,2]
[422202288,1778688641000,-2893.01,0.00010958,2]
[422202271,1778688641000,-500.0,0.00010958,2]
[422202327,1778688641000,-1496.21,0.00010958,2]
[422202263,1778688641000,-671.39,0.00010958,2]
[422202325,1778688641000,-1368.51,0.00010958,2]
[422202370,1778688641000,-719.04747942,0.00011101,2]
[422202371,1778688641000,-327.7681408,0.00011104,2]
[422202366,1778688641000,-456.4240958,0.00011095,2]
[422202364,1778688641000,-8060.957768,0.00011062,2]
[422202372,1778688641000,-176.42806,0.00011117,2]
[422202373,1778688641000,-4795.64108684,0.0001112,2]
[422202367,1778688641000,-151.0,0.00011095,2]
[422202368,1778688641000,-325.674028,0.00011095,2]
[422202369,1778688641000,-10779.83807207,0.000111,2]
[422202375,1778688641000,-10779.83807207,0.000112,2]
[422202374,1778688641000,-745.65223616,0.00011156,2]
[422202376,1778688641000,-151.0,0.000112,2]
[422202378,1778688641000,-773.2413689,0.00011211,2]
[422202365,1778688641000,-15961.915537,0.00011062,2]
[422202387,1778688641000,-500.0,0.00011232,2]
[422202386,1778688641000,-568.49,0.00011232,2]
[422202389,1778688641000,-601.87,0.00011232,2]
[422202377,1778688641000,-557.5788265,0.00011209,2]
[422202380,1778688641000,-543.1288,0.00011232,2]
[422202379,1778688641000,-1781.3386,0.00011232,2]
[422202385,1778688641000,-500.0,0.00011232,2]
[422202384,1778688641000,-500.0,0.00011232,2]
[422202383,1778688641000,-500.0,0.00011232,2]
[422202382,1778688641000,-500.0,0.00011232,2]
[422202381,1778688641000,-500.0,0.00011232,2]
[422202390,1778688641000,-669.1,0.00011232,2]
[422202391,1778688641000,-500.0,0.00011232,2]
[422202335,1778688641000,-4080.39,0.00010958,2]
[422202388,1778688641000,-559.52,0.00011232,2]
[422202361,1778688641000,-830.991479,0.00011062,2]
[422202392,1778688641000,-500.0,0.00011232,2]
[422202360,1778688641000,-160.0,0.00011062,2]
[422202358,1778688641000,-3613.795447,0.00011007,2]
[422202331,1778688641000,-618.8,0.00010958,2]
[422202329,1778688641000,-639.47,0.00010958,2]
[422202328,1778688641000,-500.0,0.00010958,2]
[422202336,1778688641000,-500.0,0.00010958,2]
[422202333,1778688641000,-2057.47,0.00010958,2]
[422202334,1778688641000,-1563.49,0.00010958,2]
[422202330,1778688641000,-500.0,0.00010958,2]
[422202338,1778688641000,-500.0,0.00010958,2]
[422202351,1778688641000,-151.0,0.00010959,2]
[422202350,1778688641000,-151.0,0.00010959,2]
[422202348,1778688641000,-189.92,0.00010959,2]
[422202344,1778688641000,-3193.95,0.00010958,2]
[422202346,1778688641000,-500.0,0.00010958,2]
[422202332,1778688641000,-603.47893609,0.00010958,2]
[422202340,1778688641000,-3264.62,0.00010958,2]
[422202362,1778688641000,-1501.982959,0.00011062,2]
[422202359,1778688641000,-693.3919763,0.00011046,2]
[422202355,1778688641000,-32063.8127302,0.00011,2]
[422202357,1778688641000,-1886.897723,0.00011007,2]
[422202342,1778688641000,-500.0,0.00010958,2]
[422202356,1778688641000,-160.0,0.00011007,2]
[422202363,1778688641000,-160.0,0.00011062,2]
[422202353,1778688641000,-668.65185757,0.00010991,2]
[422202352,1778688641000,-600.0,0.0001097,2]
[422202347,1778688641000,-500.0,0.00010958,2]
[422202345,1778688641000,-500.0,0.00010958,2]
[422202337,1778688641000,-2037.24,0.00010958,2]
[422202349,1778688641000,-189.92,0.00010959,2]
[422202354,1778688641000,-10779.83807207,0.00011,2]
[422202437,1778688642000,-693.27,0.00011232,2]
[422202435,1778688642000,-500.0,0.00011232,2]
[422202432,1778688642000,-500.0,0.00011232,2]
[422202434,1778688642000,-500.0,0.00011232,2]
[422202431,1778688642000,-500.0,0.00011232,2]
[422202427,1778688642000,-517.58,0.00011232,2]
[422202433,1778688642000,-500.0,0.00011232,2]
[422202428,1778688642000,-500.0,0.00011232,2]
[422202429,1778688642000,-500.0,0.00011232,2]
[422202424,1778688642000,-500.0,0.00011232,2]
[422202426,1778688642000,-500.0,0.00011232,2]
[422202430,1778688642000,-811.64,0.00011232,2]
[422202439,1778688642000,-500.0,0.00011232,2]
[422202446,1778688642000,-500.0,0.00011232,2]
[422202440,1778688642000,-500.0,0.00011232,2]
[422202443,1778688642000,-1418.03,0.00011232,2]
[422202441,1778688642000,-584.99,0.00011232,2]
[422202444,1778688642000,-500.0,0.00011232,2]
[422202436,1778688642000,-500.0,0.00011232,2]
[422202447,1778688642000,-1460.67,0.00011232,2]
[422202442,1778688642000,-998.52,0.00011232,2]
[422202445,1778688642000,-589.23,0.00011232,2]
[422202448,1778688642000,-199.3,0.00011232,2]
[422202459,1778688642000,-629.67,0.00011232,2]
[422202458,1778688642000,-500.0,0.00011232,2]
[422202449,1778688642000,-635.0,0.00011232,2]
[422202425,1778688642000,-500.0,0.00011232,2]
[422202438,1778688642000,-814.14,0.00011232,2]
[422202423,1778688642000,-500.0,0.00011232,2]
[422202414,1778688642000,-615.32,0.00011232,2]
[422202421,1778688642000,-1325.77,0.00011232,2]
[422202394,1778688642000,-500.0,0.00011232,2]
[422202393,1778688642000,-653.71,0.00011232,2]
[422202401,1778688642000,-500.0,0.00011232,2]
[422202396,1778688642000,-500.0,0.00011232,2]